bitfinex/quotes_SOLUSD_20241024
["timestamp","ask_amount","ask_price","bid_price","bid_amount"]
[1729790171841,5.87958371,176.77,176.74,19.9015643]
[1729790172039,0.12549,176.76,176.74,19.9015643]
[1729790172355,5.6564,176.79,176.74,19.9015643]
[1729790172549,5.6564,176.79,176.75,19.9015643]
[1729790172744,0.12549,176.79,176.75,19.9015643]
[1729790173331,5.6561,176.8,176.75,19.9015643]
[1729790173754,24.153354,176.79,176.75,19.9015643]
[1729790173965,0.12549,176.77,176.73,19.9015643]
[1729790174462,0.12549,176.77,176.69,10.5546]
[1729790174463,0.12549,176.77,176.75,19.9015643]
[1729790174655,0.12549,176.77,176.74,19.9015643]
[1729790175057,0.12549,176.77,176.75,19.9015643]
[1729790176247,0.12549,176.77,176.76,19.9015643]
[1729790177454,23.776884,176.76,176.74,19.9015643]
[1729790177756,0.12549,176.75,176.7,19.9015643]
[1729790178543,0.12549,176.75,176.71,19.9015643]
[1729790178744,0.12549,176.73,176.71,19.9015643]
[1729790179764,0.12549,176.73,176.7,19.9015643]
[1729790180240,0.12549,176.73,176.72,19.9015643]
[1729790200155,5.90702596,176.79,176.72,19.9015643]
[1729790200375,5.90702596,176.79,176.78,19.9015643]
[1729790200669,45.9319643,176.86,176.78,19.9015643]
[1729790200875,0.12549,176.85,176.8,19.9015643]
[1729790201269,45.9319643,176.86,176.8,19.9015643]
[1729790201470,45.9319643,176.86,176.73,24.0602]
[1729790201471,19.9015643,176.85,176.79,19.9015643]
[1729790201778,20.0,176.84,176.79,19.9015643]
[1729790202176,0.12549,176.83,176.79,19.9015643]
[1729790202475,23.902374,176.79,176.74,19.9015643]
[1729790202659,43.8039383,176.79,176.73,19.9015643]
[1729790202858,43.8039383,176.77,176.72,19.9015643]
[1729790203160,43.8039383,176.77,176.71,19.9015643]
[1729790203567,5.78329,176.75,176.7,19.9015643]
[1729790203767,0.12549,176.73,176.65,24.5571]
[1729790203974,0.12549,176.73,176.69,19.9015643]
[1729790204175,0.12549,176.73,176.7,19.9015643]
[1729790206476,5.78379,176.73,176.65,24.5571]
[1729790206784,0.12549,176.71,176.69,19.9015643]
[1729790210163,0.12549,176.71,176.7,19.9015643]
[1729790216685,0.12549,176.71,176.69,19.9015643]
[1729790219187,20.0270543,176.71,176.66,19.9015643]
[1729790219360,23.776884,176.7,176.66,19.9015643]
[1729790219564,23.776884,176.7,176.67,19.9015643]
[1729790219772,23.902374,176.71,176.67,19.9015643]
[1729790220291,29.561374,176.71,176.66,19.9015643]
[1729790220594,23.902374,176.71,176.66,19.9015643]
[1729790220885,23.902374,176.71,176.67,19.9015643]
[1729790221203,49.4630383,176.71,176.61,25.9929]
[1729790221363,0.12549,176.67,176.63,19.9015643]
[1729790222879,23.776884,176.66,176.63,19.9015643]
[1729790223189,0.12549,176.67,176.63,19.9015643]
[1729790225982,0.12549,176.65,176.58,20.0]
[1729790226191,0.12549,176.65,176.61,19.9015643]
[1729790227481,0.12549,176.63,176.59,19.9015643]
[1729790227686,0.12549,176.63,176.58,19.9015643]
[1729790227889,20.0270543,176.61,176.53,25.6985]
[1729790228099,0.12549,176.59,176.57,19.9015643]
[1729790231285,0.12549,176.59,176.56,19.9015643]
[1729790232012,0.12549,176.59,176.55,19.9015643]
[1729790232167,9.95078215,176.57,176.49,24.7009]
[1729790232371,0.12549,176.55,176.5,20.2015643]
[1729790232671,0.12549,176.55,176.5,19.9015643]
[1729790232865,0.12549,176.55,176.51,19.9015643]
[1729790233591,0.12549,176.53,176.5,19.9015643]
[1729790234380,0.12549,176.53,176.51,19.9015643]
[1729790235096,0.12549,176.53,176.5,19.9015643]
[1729790235585,0.12549,176.53,176.49,19.9015643]
[1729790237691,0.37647,176.53,176.48,19.9015643]
[1729790237895,49.7196183,176.53,176.47,19.9015643]
[1729790238106,69.7196183,176.53,176.41,24.973]
[1729790238275,69.7196183,176.53,176.42,19.9015643]
[1729790238276,69.8196183,176.53,176.42,19.9015643]
[1729790238599,0.37647,176.51,176.42,19.9015643]
[1729790238771,43.8039383,176.47,176.37,26.2815]
[1729790239093,49.4712383,176.45,176.4,19.9015643]
[1729790239392,19.9015643,176.41,176.34,0.5886412]
[1729790239594,23.902374,176.4,176.34,0.5886412]
[1729790239798,23.902374,176.4,176.35,19.9015643]
[1729790240191,23.902374,176.4,176.34,0.5886412]
[1729790240371,23.902374,176.4,176.35,31.27028662]
[1729790241199,23.902374,176.4,176.36,31.27028662]
[1729790241886,23.902374,176.4,176.35,31.27028662]
[1729790242193,23.902374,176.4,176.37,31.27028662]
[1729790242709,23.902374,176.4,176.39,31.27028662]
[1729790244397,23.902374,176.4,176.38,31.27028662]
[1729790244589,23.902374,176.4,176.39,31.27028662]
[1729790244785,23.902374,176.41,176.38,31.27028662]
[1729790245604,55.17266062,176.39,176.34,0.5886412]
[1729790245904,0.12549,176.37,176.34,0.5886412]
[1729790246397,0.12549,176.37,176.34,31.85892782]
[1729790246607,0.12549,176.37,176.35,31.27028662]
[1729790246778,47.988684,176.39,176.36,31.27028662]
[1729790247189,0.12549,176.38,176.36,31.27028662]
[1729790248686,0.12549,176.38,176.35,31.27028662]
[1729790248892,0.12549,176.36,176.35,31.27028662]
[1729790249081,0.12549,176.38,176.35,31.27028662]
[1729790250510,0.12549,176.36,176.34,31.85892782]
[1729790250707,0.12549,176.36,176.35,31.27028662]
[1729790253497,23.776884,176.37,176.35,31.27028662]
[1729790253699,20.0,176.42,176.36,31.27028662]
[1729790253899,20.0,176.42,176.34,0.5886412]
[1729790253900,20.0,176.42,176.4,31.27028662]
[1729790254912,44.153354,176.41,176.4,31.27028662]
[1729790255121,44.153354,176.41,176.39,31.27028662]
[1729790255407,43.902374,176.4,176.39,31.27028662]
[1729790258195,43.902374,176.4,176.38,31.27028662]
[1729790258405,23.776884,176.39,176.38,31.27028662]
[1729790259217,0.12549,176.38,176.34,0.5886412]
[1729790259508,25.7392,176.43,176.37,31.27028662]
[1729790259714,20.0,176.42,176.4,31.27028662]
[1729790259897,23.902374,176.41,176.4,31.27028662]
[1729790260101,23.776884,176.41,176.4,31.27028662]
[1729790260613,24.1591,176.47,176.4,62.54057324]
[1729790260817,24.1591,176.47,176.45,31.27028662]
[1729790261019,0.12549,176.46,176.45,31.27028662]
[1729790261197,24.1591,176.47,176.44,31.27028662]
[1729790261398,29.8259,176.47,176.44,31.27028662]
[1729790261892,0.12549,176.46,176.44,31.27028662]
[1729790262505,23.902374,176.46,176.44,31.27028662]
[1729790264017,23.902374,176.46,176.43,31.27028662]
[1729790264223,0.12549,176.42,176.39,31.27028662]
[1729790264400,23.902374,176.42,176.38,31.27028662]
[1729790264595,29.570674,176.42,176.38,31.27028662]
[1729790264904,29.570674,176.42,176.39,31.27028662]
[1729790266216,0.12549,176.42,176.39,31.27028662]
[1729790267095,0.12549,176.42,176.4,31.27028662]
[1729790267306,0.12549,176.42,176.39,31.27028662]
[1729790269627,0.12549,176.42,176.37,31.27028662]
[1729790269628,0.12549,176.4,176.37,31.27028662]
[1729790270523,0.12549,176.4,176.38,31.27028662]
[1729790272105,0.12549,176.4,176.37,31.27028662]
[1729790274303,0.12549,176.4,176.36,31.27028662]
[1729790275003,0.12549,176.4,176.37,31.27028662]
[1729790275209,36.93758662,176.45,176.39,31.27028662]
[1729790275422,5.6671,176.46,176.42,31.27028662]
[1729790275722,0.12549,176.45,176.42,31.27028662]
[1729790276425,0.12549,176.44,176.42,31.27028662]
[1729790276628,5.667,176.46,176.42,31.27028662]
[1729790276839,0.12549,176.45,176.42,31.27028662]
[1729790277126,0.12549,176.45,176.41,31.27028662]
[1729790277718,14.2645,176.5,176.34,0.5886412]
[1729790277719,31.27028662,176.51,176.44,31.27028662]
[1729790277905,73.32448662,176.52,176.47,31.27028662]
[1729790278102,42.0542,176.52,176.47,31.27028662]
[1729790278303,36.3891,176.52,176.47,31.27028662]
[1729790278529,42.0542,176.52,176.47,31.27028662]
[1729790278832,31.39577662,176.51,176.46,31.27028662]
[1729790279128,20.0,176.5,176.46,31.27028662]
[1729790279429,23.776884,176.49,176.46,31.27028662]
[1729790279730,0.12549,176.48,176.46,31.27028662]
[1729790280618,23.776884,176.49,176.46,31.27028662]
[1729790280824,20.0,176.51,176.46,31.27028662]
[1729790281027,0.12549,176.5,176.46,31.27028662]
[1729790281911,23.902374,176.5,176.46,31.27028662]
[1729790284117,23.902374,176.5,176.47,31.27028662]
[1729790284617,23.902374,176.5,176.46,31.27028662]
[1729790284829,0.12549,176.49,176.46,31.27028662]
[1729790285132,0.12549,176.49,176.47,31.27028662]
[1729790286633,31.27028662,176.53,176.4,31.27028662]
[1729790286634,66.27208662,176.56,176.48,31.27028662]
[1729790286935,66.27208662,176.56,176.41,0.2]
[1729790286936,5.6643,176.55,176.5,31.27028662]
[1729790287715,24.7704,176.56,176.53,31.27028662]
[1729790287933,0.12549,176.56,176.53,31.27028662]
[1729790288238,0.12549,176.54,176.51,31.27028662]
[1729790290219,23.776884,176.53,176.48,31.27028662]
[1729790290525,0.12549,176.5,176.46,31.27028662]
[1729790291935,0.12549,176.5,176.47,31.27028662]
[1729790294132,31.39577662,176.5,176.42,26.0993]
[1729790294333,0.12549,176.48,176.44,31.27028662]
[1729790294914,0.12549,176.48,176.45,31.27028662]
[1729790295320,0.12549,176.48,176.44,31.27028662]
[1729790295524,0.12549,176.48,176.43,31.27028662]
[1729790295820,23.776884,176.45,176.4,31.27028662]
[1729790296024,23.776884,176.45,176.41,31.27028662]
[1729790297140,29.820454,176.46,176.41,31.27028662]
[1729790297724,31.27028662,176.45,176.4,31.27028662]
[1729790297925,0.12549,176.43,176.39,31.27028662]
[1729790298629,0.12549,176.43,176.4,31.27028662]
[1729790299057,23.776884,176.44,176.41,31.27028662]
[1729790299354,23.776884,176.46,176.43,31.27028662]
[1729790299650,0.12549,176.45,176.43,31.27028662]
[1729790301626,0.12549,176.45,176.42,31.27028662]
[1729790302327,0.12549,176.45,176.4,31.27028662]
[1729790302544,23.776884,176.44,176.39,31.27028662]
[1729790302751,55.04717062,176.44,176.39,31.27028662]
[1729790302939,23.776884,176.44,176.39,31.27028662]
[1729790303444,31.27028662,176.48,176.43,31.27028662]
[1729790303655,23.776884,176.48,176.44,31.27028662]
[1729790304025,0.12549,176.47,176.44,31.27028662]
[1729790304224,0.12549,176.47,176.43,31.27028662]
[1729790309752,0.12549,176.47,176.37,20.0]
[1729790310056,0.12549,176.47,176.42,31.27028662]
[1729790310057,23.776884,176.46,176.42,31.27028662]
[1729790310236,23.776884,176.46,176.42,19.99485634]
[1729790311033,23.902374,176.47,176.42,19.99485634]
[1729790312267,23.902374,176.47,176.43,19.99485634]
[1729790320761,0.12549,176.47,176.43,19.99485634]
[1729790321266,0.12549,176.47,176.44,19.99485634]
[1729790321654,0.12549,176.47,176.43,19.99485634]
[1729790322349,0.12549,176.47,176.37,20.0]
[1729790322555,0.12549,176.47,176.43,19.99485634]
[1729790324471,0.12549,176.45,176.42,19.99485634]
[1729790326552,0.12549,176.45,176.42,9.99742817]
[1729790326755,23.902374,176.43,176.38,19.99485634]
[1729790327078,23.902374,176.43,176.37,19.99485634]
[1729790327079,43.89723034,176.43,176.37,19.99485634]
[1729790327242,23.902374,176.4,176.36,19.99485634]
[1729790327450,0.12549,176.4,176.37,19.99485634]
[1729790328870,0.12549,176.4,176.36,19.99485634]
[1729790331847,0.12549,176.4,176.35,19.99485634]
[1729790333158,0.12549,176.4,176.37,19.99485634]
[1729790333366,0.12549,176.4,176.36,19.99485634]
[1729790337674,20.0,176.45,176.39,19.99485634]
[1729790337873,19.99485634,176.43,176.38,19.99485634]
[1729790338169,19.99485634,176.42,176.36,19.99485634]
[1729790338369,0.12549,176.41,176.36,19.99485634]
[1729790338949,29.570974,176.41,176.36,19.99485634]
[1729790340169,29.570974,176.41,176.37,19.99485634]
[1729790340366,23.902374,176.41,176.38,19.99485634]
[1729790340565,23.902374,176.41,176.39,19.99485634]
[1729790341175,23.902374,176.41,176.37,19.99485634]
[1729790341176,0.12549,176.41,176.37,19.99485634]
[1729790341362,0.12549,176.39,176.35,19.99485634]
[1729790342069,23.776884,176.4,176.38,9.99742817]
[1729790342249,29.695264,176.45,176.39,19.99485634]
[1729790342458,0.12549,176.44,176.39,19.99485634]
[1729790342962,20.12034634,176.44,176.38,19.99485634]
[1729790343856,25.78814634,176.44,176.39,19.99485634]
[1729790344063,0.12549,176.42,176.39,19.99485634]
[1729790346175,0.12549,176.42,176.4,19.99485634]
[1729790347154,25.1681,176.5,176.41,19.99485634]
[1729790347361,45.16295634,176.5,176.45,19.99485634]
[1729790347660,15.985,176.52,176.47,19.99485634]
[1729790347984,10.32,176.52,176.48,19.99485634]
[1729790348275,25.1681,176.54,176.5,19.99485634]
[1729790348478,0.12549,176.53,176.5,19.99485634]
[1729790348675,0.12549,176.53,176.49,19.99485634]
[1729790348977,23.776884,176.53,176.49,19.99485634]
[1729790349178,0.12549,176.52,176.49,19.99485634]
[1729790350273,5.6638,176.56,176.51,19.99485634]
[1729790350478,5.6638,176.56,176.44,26.0528]
[1729790350479,5.6638,176.56,176.53,19.99485634]
[1729790350779,5.6638,176.56,176.52,19.99485634]
[1729790351182,15.9834,176.57,176.53,19.99485634]
[1729790351557,43.902374,176.56,176.51,19.99485634]
[1729790351859,63.89723034,176.56,176.51,19.99485634]
[1729790352365,23.776884,176.54,176.51,19.99485634]
[1729790352567,0.12549,176.53,176.51,19.99485634]
[1729790353165,0.12549,176.53,176.44,26.1528]
[1729790353369,0.12549,176.53,176.51,19.99485634]
[1729790354767,15.9837,176.57,176.52,19.99485634]
[1729790355073,5.6637,176.57,176.55,19.99485634]
[1729790355383,5.6625,176.6,176.56,19.99485634]
[1729790355879,0.12549,176.59,176.56,19.99485634]
[1729790356260,5.6625,176.6,176.56,19.99485634]
[1729790356672,23.902374,176.59,176.56,19.99485634]
[1729790358580,0.12549,176.57,176.56,19.99485634]
[1729790359073,5.6626,176.6,176.56,19.99485634]
[1729790359277,5.6621,176.61,176.51,25.8573]
[1729790359469,19.99485634,176.59,176.54,19.99485634]
[1729790359663,0.12549,176.58,176.54,19.99485634]
[1729790359857,0.12549,176.58,176.53,19.99485634]
[1729790360066,0.12549,176.58,176.54,19.99485634]
[1729790360671,29.565674,176.58,176.54,19.99485634]
[1729790361165,0.12549,176.55,176.47,20.0]
[1729790361365,0.12549,176.53,176.48,19.99485634]
[1729790361592,23.776884,176.52,176.48,19.99485634]
[1729790361889,23.776884,176.5,176.42,24.9845]
[1729790362068,0.12549,176.49,176.46,19.99485634]
[1729790363388,23.776884,176.51,176.47,19.99485634]
[1729790363891,0.12549,176.5,176.48,19.99485634]
[1729790365380,23.776884,176.51,176.48,19.99485634]
[1729790365683,0.12549,176.52,176.48,19.99485634]
[1729790365882,23.902374,176.52,176.48,19.99485634]
[1729790366893,23.902374,176.52,176.47,19.99485634]
[1729790367389,23.902374,176.52,176.43,0.1]
[1729790367390,0.12549,176.52,176.49,19.99485634]
[1729790367684,23.776884,176.54,176.51,19.99485634]
[1729790369274,23.776884,176.54,176.5,19.99485634]
[1729790370285,23.776884,176.54,176.48,19.99485634]
[1729790370286,20.12034634,176.53,176.48,19.99485634]
[1729790370586,0.12549,176.53,176.48,19.99485634]
[1729790371177,5.79029,176.53,176.48,19.99485634]
[1729790371376,25.78514634,176.53,176.48,19.99485634]
[1729790371577,25.78514634,176.53,176.45,19.99485634]
[1729790371578,20.12034634,176.51,176.45,19.99485634]
[1729790371779,43.77174034,176.5,176.45,19.99485634]
[1729790373188,23.776884,176.5,176.45,19.99485634]
[1729790375993,29.442684,176.5,176.45,19.99485634]
[1729790376494,49.43754034,176.5,176.45,19.99485634]
[1729790376696,0.12549,176.49,176.45,19.99485634]
[1729790377593,5.79149,176.49,176.44,19.99485634]
[1729790378680,20.12034634,176.47,176.39,20.0]
[1729790378882,20.12034634,176.47,176.42,19.99485634]
[1729790379087,25.78724634,176.47,176.42,19.99485634]
[1729790379292,5.79239,176.47,176.42,19.99485634]
[1729790379597,5.79239,176.47,176.43,19.99485634]
[1729790380177,5.79239,176.47,176.39,20.0]
[1729790380178,5.79239,176.47,176.42,19.99485634]
[1729790380573,23.776884,176.46,176.41,19.99485634]
[1729790380780,23.776884,176.46,176.42,19.99485634]
[1729790381996,29.443884,176.46,176.42,19.99485634]
[1729790382394,29.443884,176.46,176.43,19.99485634]
[1729790382701,23.776884,176.46,176.43,19.99485634]
[1729790383109,23.776884,176.46,176.42,19.99485634]
[1729790385515,0.12549,176.45,176.37,20.0]
[1729790385693,23.776884,176.44,176.37,20.0]
[1729790386005,23.776884,176.44,176.39,19.99485634]
[1729790386203,29.444584,176.44,176.4,9.99742817]
[1729790386409,29.444584,176.44,176.4,19.99485634]
[1729790386791,23.776884,176.44,176.41,19.99485634]
[1729790388006,69.68872034,176.49,176.43,19.99485634]
[1729790388187,0.12549,176.48,176.43,19.99485634]
[1729790388383,0.12549,176.48,176.45,19.99485634]
[1729790389013,0.12549,176.48,176.44,19.99485634]
[1729790391805,0.12549,176.48,176.45,19.99485634]
[1729790392815,25.6547,176.5,176.47,19.99485634]
[1729790393191,16.3374,176.54,176.48,9.99742817]
[1729790393496,11.7969,176.56,176.51,19.99485634]
[1729790394209,0.12549,176.55,176.51,19.99485634]
[1729790394624,0.12549,176.51,176.46,19.99485634]
[1729790394909,20.12034634,176.51,176.46,19.99485634]
[1729790395713,23.902374,176.51,176.46,19.99485634]
[1729790396703,29.567774,176.51,176.46,19.99485634]
[1729790396907,29.567774,176.51,176.47,19.99485634]
[1729790397309,29.567774,176.51,176.46,19.99485634]
[1729790398398,29.567774,176.51,176.47,19.99485634]
[1729790399092,0.12549,176.51,176.47,19.99485634]
[1729790400518,5.79099,176.51,176.47,19.99485634]
[1729790401223,0.12549,176.49,176.46,19.99485634]
[1729790401411,0.12549,176.49,176.45,19.99485634]
[1729790402221,5.79149,176.49,176.45,19.99485634]
[1729790402528,5.79159,176.49,176.44,19.99485634]
[1729790402717,5.79159,176.49,176.45,19.99485634]
[1729790405609,15.3948,176.52,176.47,19.99485634]
[1729790405809,15.3948,176.52,176.42,0.2]
[1729790405810,25.65935634,176.54,176.49,19.99485634]
[1729790406121,28.1754,176.56,176.51,19.99485634]
[1729790406325,28.1754,176.56,176.52,19.99485634]
[1729790406704,0.12549,176.55,176.52,19.99485634]
[1729790406900,0.12549,176.55,176.5,9.99742817]
[1729790407147,0.12549,176.53,176.49,19.99485634]
[1729790407435,23.902374,176.53,176.49,19.99485634]
[1729790408216,23.902374,176.53,176.5,19.99485634]
[1729790408415,23.902374,176.53,176.51,19.99485634]
[1729790411524,22.5115,176.56,176.52,19.99485634]
[1729790411525,16.3786,176.56,176.52,19.99485634]
[1729790411706,16.3786,176.56,176.53,19.99485634]
[1729790412025,19.99485634,176.59,176.54,19.99485634]
[1729790412026,0.12549,176.58,176.54,19.99485634]
[1729790412215,20.0,176.59,176.54,19.99485634]
[1729790412612,39.99485634,176.59,176.54,19.99485634]
[1729790412808,23.902374,176.58,176.53,19.99485634]
[1729790413236,29.565474,176.58,176.55,19.99485634]
[1729790413421,29.565474,176.58,176.54,19.99485634]
[1729790414615,6.1834,176.6,176.57,19.99485634]
[1729790414917,16.5033,176.61,176.58,19.99485634]
[1729790415313,6.5172,176.64,176.6,19.99485634]
[1729790415539,20.12034634,176.61,176.52,20.0]
[1729790415836,20.12034634,176.63,176.57,19.99485634]
[1729790416133,20.12034634,176.63,176.58,19.99485634]
[1729790417216,0.12549,176.6,176.58,19.99485634]
[1729790420036,0.12549,176.6,176.58,9.99742817]
[1729790420235,20.12034634,176.6,176.55,19.99485634]
[1729790420420,0.12549,176.6,176.56,19.99485634]
[1729790420815,0.12549,176.6,176.57,19.99485634]
[1729790422222,0.12549,176.6,176.56,19.99485634]
[1729790422947,0.12549,176.6,176.51,14.9128]
[1729790422948,23.776884,176.59,176.54,19.99485634]
[1729790423135,20.12034634,176.57,176.51,19.99485634]
[1729790423438,25.78384634,176.57,176.51,19.99485634]
[1729790423822,0.12549,176.55,176.5,19.99485634]
[1729790424039,23.902374,176.53,176.49,19.99485634]
[1729790424437,0.12549,176.53,176.49,19.99485634]
[1729790424660,0.12549,176.51,176.47,19.99485634]
[1729790425114,26.4628,176.57,176.38,15.99768291]
[1729790425115,23.902374,176.49,176.38,15.99768291]
[1729790425321,23.902374,176.49,176.44,19.99485634]
[1729790425540,23.902374,176.49,176.45,19.99485634]
[1729790426240,23.902374,176.49,176.4,0.2]
[1729790426449,23.902374,176.49,176.45,31.23257238]
[1729790426744,0.12549,176.49,176.45,31.23257238]
[1729790427039,0.12549,176.49,176.46,31.23257238]
[1729790428235,23.776884,176.51,176.47,31.23257238]
[1729790428546,23.902374,176.49,176.44,31.23257238]
[1729790429241,23.902374,176.49,176.45,31.23257238]
[1729790429441,23.902374,176.5,176.45,31.23257238]
[1729790430533,60.80064638,176.5,176.45,31.23257238]
[1729790431263,0.12549,176.47,176.42,31.23257238]
[1729790431451,23.902374,176.47,176.42,31.23257238]
[1729790431960,55.13494638,176.47,176.41,31.23257238]
[1729790432139,23.902374,176.47,176.42,31.23257238]
[1729790432451,23.902374,176.47,176.43,31.23257238]
[1729790433552,29.568974,176.47,176.42,31.23257238]
[1729790434755,23.902374,176.47,176.42,31.23257238]
[1729790434959,23.902374,176.47,176.43,31.23257238]
[1729790438142,23.902374,176.48,176.43,31.23257238]
[1729790438659,6.5042,176.5,176.38,14.9128]
[1729790438660,6.5042,176.5,176.45,31.23257238]
[1729790438858,6.5042,176.5,176.46,31.23257238]
[1729790439036,0.12549,176.49,176.45,31.23257238]
[1729790439844,23.776884,176.48,176.44,31.23257238]
[1729790440158,0.12549,176.47,176.42,31.23257238]
[1729790440738,31.35806238,176.47,176.42,31.23257238]
[1729790440940,55.00945638,176.46,176.4,31.23257238]
[1729790441559,0.12549,176.45,176.4,31.23257238]
[1729790442239,0.12549,176.45,176.42,31.23257238]
[1729790445464,0.12549,176.45,176.41,31.23257238]
[1729790446057,23.776884,176.44,176.39,31.23257238]
[1729790446247,23.776884,176.44,176.38,20.00362082]
[1729790446248,43.78050482,176.44,176.38,20.00362082]
[1729790446949,0.12549,176.43,176.38,20.00362082]
[1729790447157,0.12549,176.43,176.34,0.5886412]
[1729790447158,0.12549,176.41,176.37,20.00362082]
[1729790448169,0.12549,176.39,176.35,20.00362082]
[1729790448375,23.776884,176.38,176.34,0.5886412]
[1729790448965,0.12549,176.37,176.34,20.59226202]
[1729790453269,0.12549,176.37,176.34,0.5886412]
[1729790453270,0.12549,176.35,176.34,0.5886412]
[1729790458279,40.12911082,176.41,176.34,20.59226202]
[1729790458459,40.12911082,176.41,176.36,20.00362082]
[1729790459353,16.2972,176.42,176.38,20.00362082]
[1729790460260,0.12549,176.41,176.38,20.00362082]
[1729790460454,5.79409,176.41,176.38,20.00362082]
[1729790460654,0.12549,176.39,176.37,20.00362082]
[1729790461374,16.2972,176.42,176.38,20.00362082]
[1729790461568,16.2972,176.42,176.39,20.00362082]
[1729790461754,0.12549,176.41,176.38,20.00362082]
[1729790462976,23.902374,176.41,176.38,20.00362082]
[1729790463182,23.902374,176.41,176.4,20.00362082]
[1729790465272,25.667,176.46,176.4,20.00362082]
[1729790465463,25.667,176.46,176.43,20.00362082]
[1729790466970,23.902374,176.45,176.43,20.00362082]
[1729790467487,22.5526,176.47,176.43,20.00362082]
[1729790467652,28.2193,176.47,176.43,20.00362082]
[1729790467852,28.2193,176.47,176.34,0.5886412]
[1729790467853,20.12911082,176.46,176.34,0.5886412]
[1729790468077,20.00362082,176.45,176.39,20.00362082]
[1729790468748,0.12549,176.43,176.39,20.00362082]
[1729790468966,0.12549,176.41,176.38,20.00362082]
[1729790470073,0.12549,176.41,176.36,20.00362082]
[1729790470269,0.37647,176.41,176.36,20.00362082]
[1729790470480,20.38009082,176.41,176.36,20.00362082]
[1729790470673,23.776884,176.4,176.36,20.00362082]
[1729790470871,0.12549,176.37,176.35,20.00362082]
[1729790471057,0.12549,176.37,176.34,20.59226202]
[1729790471677,0.12549,176.37,176.35,20.00362082]
[1729790473096,0.12549,176.37,176.36,20.00362082]
[1729790474383,0.12549,176.37,176.35,20.00362082]
[1729790475357,0.12549,176.37,176.34,20.59226202]
[1729790475562,0.12549,176.37,176.35,20.00362082]
[1729790476364,0.12549,176.37,176.34,20.59226202]
[1729790480177,0.12549,176.37,176.35,20.00362082]
[1729790481368,0.12549,176.37,176.36,20.00362082]
[1729790483684,0.12549,176.37,176.35,20.00362082]
[1729790485380,0.12549,176.37,176.36,20.00362082]
[1729790488790,0.12549,176.37,176.35,20.00362082]
[1729790488982,0.12549,176.37,176.36,20.00362082]
[1729790491088,0.12549,176.37,176.35,20.00362082]
[1729790492993,23.776884,176.39,176.35,20.00362082]
[1729790493167,0.12549,176.38,176.35,20.00362082]
[1729790495097,0.12549,176.38,176.35,20.00362082]
[1729790497197,0.12549,176.38,176.36,20.00362082]
[1729790498192,23.776884,176.39,176.36,20.00362082]
[1729790499770,22.2438,176.44,176.37,20.00362082]
[1729790499982,45.67172082,176.43,176.38,20.00362082]
[1729790500485,0.12549,176.42,176.38,20.00362082]
[1729790501394,23.902374,176.42,176.38,20.00362082]
[1729790502294,23.776884,176.43,176.41,20.00362082]
[1729790502493,20.00362082,176.47,176.41,20.00362082]
[1729790502808,0.12549,176.46,176.41,20.00362082]
[1729790503097,5.79249,176.46,176.42,20.00362082]
[1729790503390,35.14902082,176.48,176.43,20.00362082]
[1729790503601,15.1454,176.48,176.44,20.00362082]
[1729790503975,0.12549,176.47,176.44,20.00362082]
[1729790504176,5.665,176.52,176.46,20.00362082]
[1729790504392,0.12549,176.5,176.46,20.00362082]
[1729790504581,20.00362082,176.51,176.46,20.00362082]
[1729790505073,25.66862082,176.52,176.46,20.00362082]
[1729790505592,5.665,176.52,176.47,20.00362082]
[1729790505898,0.12549,176.51,176.47,20.00362082]
[1729790506074,29.13938562,176.53,176.48,20.00362082]
[1729790506282,49.14300644,176.53,176.48,20.00362082]
[1729790506990,0.12549,176.52,176.49,20.00362082]
[1729790507376,23.902374,176.52,176.48,20.00362082]
[1729790509383,23.902374,176.52,176.49,20.00362082]
[1729790510895,0.99638562,176.53,176.51,20.00362082]
[1729790512787,1.12187562,176.53,176.52,20.00362082]
[1729790513088,24.89875962,176.53,176.52,20.00362082]
[1729790513497,24.89875962,176.53,176.51,20.00362082]
[1729790513794,24.89875962,176.53,176.5,20.00362082]
[1729790514493,24.89875962,176.53,176.52,20.00362082]
[1729790514884,24.89875962,176.53,176.51,20.00362082]
[1729790515805,24.89875962,176.53,176.5,20.00362082]
[1729790517291,24.89875962,176.53,176.51,20.00362082]
[1729790517483,0.99638562,176.53,176.52,20.00362082]
[1729790517896,0.99638562,176.53,176.42,0.35098]
[1729790518090,0.12549,176.52,176.48,20.00362082]
[1729790518881,23.902374,176.52,176.48,20.00362082]